fUST/lending_fUST_20240213
["ID","MTS","AMOUNT","RATE_DAILY","PERIOD"]
[313868146,1707759047260,-276.20073195,0.00025488,2]
[313868148,1707759047270,-261.88794378,0.00025488,2]
[313868150,1707759047280,-155.07909034,0.00025488,2]
[313868152,1707759047290,-640.48860722,0.00025488,2]
[313868154,1707759047299,-155.79323033,0.00025488,2]
[313868156,1707759047309,-309.95966768,0.00025488,2]
[313868157,1707759047318,-1947.3753187,0.00025488,2]
[313868159,1707759047327,-155.50464675,0.00025488,2]
[313868161,1707759047337,-294.57728151,0.00025488,2]
[313868163,1707759047346,-155.27317365,0.00025488,2]
[313868165,1707759047356,-1745.88499104,0.00025488,2]
[313868167,1707759047365,-174.71029562,0.00025488,2]
[313868169,1707759047376,-155.07909034,0.00025488,2]
[313868171,1707759047385,-2778.15443682,0.00025488,2]
[313868173,1707759047395,-1018.41805308,0.00025488,2]
[313868175,1707759047408,-155.55415981,0.00025488,2]
[313868177,1707759047417,-1434.09189254,0.00025488,2]
[313868179,1707759047426,-284.27448433,0.00025488,2]
[313868181,1707759047436,-159.31275782,0.00025488,2]
[313868183,1707759047447,-219.15315653,0.00025488,2]
[313868185,1707759047456,-155.94178321,0.00025488,2]
[313868187,1707759047465,-261.08056277,0.00025488,2]
[313868189,1707759047474,-37068.7030693,0.00025488,2]
[313868191,1707759047483,-179.16084006,0.00025488,2]
[313868193,1707759047491,-18958.53184425,0.00025488,2]
[313868195,1707759047501,-155.8993173,0.00025488,2]
[313868210,1707759047644,-155.07909034,0.00025488,2]
[313868212,1707759047657,-226.16611317,0.00025488,2]
[313868214,1707759047666,-1297.44316792,0.00025488,2]
[313868216,1707759047675,-155.10776843,0.00025488,2]
[313868218,1707759047685,-154.96196454,0.00025488,2]
[313868220,1707759047694,-156.51839319,0.00025488,2]
[313868222,1707759047703,-563.21509038,0.00025488,2]
[313868224,1707759047712,-175.72920133,0.00025488,2]
[313868226,1707759047721,-500.0,0.00025488,2]
[313868228,1707759047734,-155.46139629,0.00025489,2]
[313868230,1707759047744,-180.32360661,0.00025489,2]
[313868231,1707759047753,-2587.14665318,0.00025489,4]
[313868232,1707759047762,-270.4773852,0.0002549,3]
[313868233,1707759047774,-391.0,0.0002549,3]
[313868235,1707759047786,-16.82376291,0.0002549,3]
[313868237,1707759047795,-4298.35814553,0.0002549,10]
[313868239,1707759047807,-950.0,0.0002549,10]
[313868240,1707759047818,-612.53850521,0.0002549,10]
[313868241,1707759047830,-500.0,0.0002549,10]
[313868242,1707759047841,-15291.20461945,0.0002549,10]
[313868243,1707759047850,-1833.12108864,0.0002549,2]
[313868244,1707759047859,-171062.3267878,0.0002549,7]
[313868245,1707759047869,-1200.0,0.0002549,2]
[313868246,1707759047879,-1471.19840111,0.0002549,2]
[313868247,1707759047888,-172.62193479,0.0002549,2]
[313868248,1707759047897,-206.70820157,0.0002549,2]
[313868249,1707759047906,-262.3113014,0.0002549,2]
[313868250,1707759047915,-3015.99338669,0.0002549,2]
[313868251,1707759047925,-1859.09579688,0.00025499,2]
[313868252,1707759047934,-229.51,0.000255,2]
[313868253,1707759047943,-89.68487823,0.000255,30]
[313868254,1707759047952,-302.0,0.000255,2]
[313868255,1707759047961,-300.0,0.000255,7]
[313868256,1707759047970,-1402.0,0.000255,2]
[313868257,1707759047979,-470.84612953,0.000255,3]
[313868258,1707759047989,-444.63707545,0.000255,2]
[313868259,1707759047998,-1649.25755774,0.000255,3]
[313868260,1707759048007,-249.38933963,0.000255,3]
[313868261,1707759048016,-1047.43522643,0.000255,3]
[313868262,1707759048026,-343.27621346,0.000255,3]
[313868263,1707759048035,-393.37864457,0.000255,3]
[313868264,1707759048045,-4181.03032667,0.000255,2]
[313868265,1707759048054,-238.61723307,0.000255,3]
[313868266,1707759048064,-321.78749556,0.000255,3]
[313868267,1707759048073,-240.75492942,0.000255,2]
[313868268,1707759048083,-646.44005286,0.000255,3]
[313868269,1707759048092,-209.76337199,0.000255,2]
[313868270,1707759048101,-935.2100236,0.000255,3]
[313868271,1707759048110,-646.575644,0.00025549,2]
[313868272,1707759048120,-425.798031,0.00025549,2]
[313868273,1707759048131,-675.543833,0.00025549,2]
[313868274,1707759048140,-456.34773,0.00025549,2]
[313868275,1707759048149,-532.481602,0.00025549,2]
[313868276,1707759048159,-376.557926,0.00025549,2]
[313868277,1707759048168,-500.0,0.00025753,2]
[313868278,1707759048178,-500.0,0.00025753,2]
[313868279,1707759048187,-360.8,0.00025753,2]
[313868280,1707759048196,-153.91,0.00025753,2]
[313868281,1707759048205,-236.5,0.00025753,2]
[313868282,1707759048214,-500.0,0.00025753,2]
[313868283,1707759048224,-500.0,0.00025753,2]
[313868284,1707759048234,-500.0,0.00025753,2]
[313868285,1707759048243,-500.0,0.00025753,2]
[313868286,1707759048254,-622.71904047,0.00025872,2]
[313868287,1707759048263,-154.87609912,0.00026,7]
[313868288,1707759048272,-155.1260716,0.00026,2]
[313868289,1707759048282,-1000.0,0.00026,26]
[313868290,1707759048291,-3000.0,0.00026,7]
[313868291,1707759048301,-237.07612905,0.00026,2]
[313868292,1707759048310,-4705.28091739,0.00026,2]
[313868293,1707759048319,-538.7494051,0.00026,2]
[313868294,1707759048328,-500.0,0.00026027,2]
[313868295,1707759048338,-500.0,0.00026027,2]
[313868296,1707759048347,-500.0,0.00026027,2]
[313868297,1707759048356,-500.0,0.00026027,2]
[313868298,1707759048365,-500.0,0.00026027,2]
[313868299,1707759048377,-621.89,0.00026027,2]
[313868300,1707759048386,-337.0,0.000262,12]
[313868301,1707759048396,-2000.0,0.00026204,2]
[313868302,1707759048411,-2000.0,0.00026204,2]
[313868303,1707759048420,-2000.0,0.00026204,2]
[313868304,1707759048429,-500.0,0.00026301,2]
[313868305,1707759048439,-500.0,0.00026301,2]
[313868306,1707759048450,-500.0,0.00026301,2]
[313868307,1707759048459,-500.0,0.00026301,2]
[313868308,1707759048468,-500.0,0.00026301,2]
[313868309,1707759048477,-2000.0,0.000265,7]
[313868310,1707759048486,-500.0,0.00026575,2]
[313868311,1707759048496,-500.0,0.00026575,2]
[313868312,1707759048506,-505.07361327,0.00026575,2]
[313868313,1707759048516,-500.0,0.00026575,2]
[313868314,1707759048526,-500.0,0.00026575,2]
[313868315,1707759048535,-680.85802864,0.00026798,2]
[313868316,1707759048544,-279.74496938,0.00026798,2]
[313868317,1707759048563,-459.3621972,0.00026798,2]
[313868318,1707759048575,-4035.82532871,0.00026798,2]
[313868319,1707759048584,-666.87063045,0.00026799,2]
[313868320,1707759048594,-221.2863994,0.00026799,2]
[313868321,1707759048604,-500.0,0.00026799,2]
[313868322,1707759048613,-500.0,0.00026799,2]
[313868323,1707759048625,-500.0,0.00026799,2]
[313868324,1707759048635,-500.0,0.00026799,2]
[313868325,1707759048647,-312.85822931,0.00026799,2]
[313868326,1707759048657,-232.09057748,0.00026799,2]
[313868327,1707759048667,-500.0,0.00026799,2]
[313868328,1707759048677,-275.72735596,0.00026799,2]
[313868329,1707759048686,-500.0,0.00026799,2]
[313868330,1707759048696,-354.6476407,0.00026799,2]
[313868331,1707759048706,-500.0,0.00026799,2]
[313868332,1707759048716,-164.33701167,0.00026799,2]
[313868333,1707759048725,-500.0,0.00026799,2]
[313868334,1707759048735,-500.0,0.00026799,2]
[313868335,1707759048745,-598.95496357,0.00026799,2]
[313868336,1707759048754,-500.0,0.00026799,2]
[313868337,1707759048764,-500.0,0.00026799,2]
[313868338,1707759048773,-500.0,0.00026799,2]
[313868339,1707759048783,-164.1496443,0.00026799,2]
[313868340,1707759048792,-162.46340423,0.00026799,2]
[313868341,1707759048803,-152910.8119353,0.000268,2]
[313868342,1707759048812,-140124.81532807,0.000268,2]
[313868343,1707759048822,-235.0,0.000268,2]
[313868344,1707759048832,-5797.61746463,0.000268,2]
[313868345,1707759048848,-4321.55,0.000268,2]
[313868346,1707759048860,-775.21620999,0.000268,2]
[313868347,1707759048892,-154.8915759,0.00022937,4]
[313868348,1707759048902,-25788.10322485,0.000268,2]
[313868349,1707759048911,-500.0,0.00026849,2]
[313868350,1707759048920,-500.0,0.00026849,2]
[313868351,1707759048930,-500.0,0.00026849,2]
[313868352,1707759048940,-500.0,0.00026849,2]
[313868353,1707759048950,-154.99539339,0.00027,2]
[313868354,1707759048960,-1000.0,0.00027,27]
[313868355,1707759048969,-3000.0,0.00027,7]
[313868356,1707759048978,-30459.129917,0.00027,2]
[313868357,1707759048988,-5928.48004393,0.00027,2]
[313868358,1707759048997,-1011.494,0.00027,2]
[313868359,1707759049007,-2002.21409099,0.00027,2]
[313868360,1707759049017,-49082.96659268,0.00027,2]
[313868361,1707759049026,-500.0,0.00027123,2]
[313868362,1707759049036,-500.0,0.00027123,2]
[313868363,1707759049045,-500.0,0.00027123,2]
[313868364,1707759049055,-500.0,0.00027123,2]
[313868365,1707759049065,-300.0,0.00027131,2]
[313868366,1707759049075,-620.13595202,0.00027166,2]
[313868367,1707759049085,-10000.0,0.0002731,4]
[313868368,1707759049095,-607.67326012,0.00027397,2]
[313868369,1707759049104,-500.0,0.00027397,14]
[313868370,1707759049115,-500.0,0.00027397,14]
[313868371,1707759049126,-503.40553294,0.00027397,14]
[313868372,1707759049137,-500.0,0.00027397,2]
[313868373,1707759049147,-500.0,0.00027397,2]
[313868374,1707759049157,-500.0,0.00027397,2]
[313868375,1707759049167,-500.0,0.00027397,2]
[313868376,1707759049176,-500.0,0.00027397,2]
[313868377,1707759049186,-500.0,0.00027397,2]
[313868378,1707759049195,-500.0,0.00027397,2]
[313868379,1707759049205,-500.0,0.00027397,2]
[313868380,1707759049214,-500.0,0.00027397,2]
[313868381,1707759049225,-500.0,0.00027397,2]
[313868382,1707759049235,-500.0,0.00027397,2]
[313868383,1707759049245,-500.0,0.00027397,2]
[313868384,1707759049255,-500.0,0.00027397,2]
[313868385,1707759049266,-500.0,0.00027397,2]
[313868386,1707759049277,-562.33473585,0.00027397,2]
[313868387,1707759049288,-501.91807385,0.00027397,2]
[313868388,1707759049298,-430.14978013,0.00027397,2]
[313868389,1707759049309,-517.6852369,0.00027397,15]
[313868390,1707759049320,-500.0,0.00027397,2]
[313868391,1707759049330,-155.0,0.00027397,2]
[313868392,1707759049340,-10035.65697089,0.00027397,10]
[313868393,1707759049350,-550.72962511,0.00027397,2]
[313868394,1707759049364,-500.0,0.00027397,2]
[313868395,1707759049377,-500.0,0.00027397,2]
[313868396,1707759049387,-500.0,0.00027397,2]
[313868397,1707759049398,-691.36361694,0.00027397,2]
[313868398,1707759049411,-500.0,0.00027397,2]
[313868399,1707759049421,-150.1,0.00027397,2]
[313868400,1707759049433,-45219.8475349,0.00027397,2]
[313868401,1707759049447,-236.36295004,0.00027397,10]
[313868402,1707759049457,-160.0,0.00027397,10]
[313868403,1707759049468,-160.0,0.00027397,10]
[313868404,1707759049479,-300.0,0.00027462,2]
[313868405,1707759049492,-31024.79797365,0.000275,7]
[313868406,1707759049519,-36572.72394848,0.000275,7]
[313868407,1707759049541,-5103.14080952,0.000275,7]
[313868408,1707759049553,-3639.04284146,0.000275,7]
[313868409,1707759049570,-23660.29442689,0.000275,7]
[313868410,1707759049580,-95135.0,0.000275,14]
[313868411,1707759049590,-2159.80763154,0.000275,2]
[313868412,1707759049599,-2500.0,0.000275,10]
[313868413,1707759049609,-2000.0,0.000275,2]
[313868414,1707759049619,-227.427267,0.000275,2]
[313868415,1707759049631,-154.561332,0.000275,2]
[313868416,1707759049640,-151.0,0.000275,2]
[313868417,1707759049650,-2000.0,0.0002751,2]
[313868418,1707759049659,-2000.0,0.0002752,2]
[313868419,1707759049669,-2000.0,0.0002753,2]
[313868420,1707759049679,-500.0,0.00027534,2]
[313868421,1707759049688,-2000.0,0.0002754,2]
[313868422,1707759049697,-2000.0,0.0002755,2]
[313868423,1707759049707,-44444.0,0.0002755,2]
[313868424,1707759049716,-2000.0,0.0002756,2]
[313868425,1707759049725,-2000.0,0.0002757,2]
[313868426,1707759049735,-2000.0,0.0002758,2]
[313868427,1707759049745,-2000.0,0.0002759,2]
[313868428,1707759049755,-2600.0,0.000276,2]
[313868429,1707759049765,-2000.0,0.000276,2]
[313868430,1707759049776,-500.0,0.0002761,2]
[313868431,1707759049785,-2000.0,0.0002761,2]
[313868432,1707759049795,-2000.0,0.0002762,2]
[313868433,1707759049805,-157.94614628,0.00027621,2]
[313868434,1707759049815,-2000.0,0.0002763,2]
[313868435,1707759049824,-2000.0,0.0002764,2]
[313868436,1707759049834,-2000.0,0.0002765,2]
[313868437,1707759049843,-2000.0,0.0002766,2]
[313868438,1707759049853,-3607.677814,0.0002767,2]
[313868439,1707759049862,-500.0,0.00027671,2]
[313868440,1707759049872,-548.73,0.00027671,2]
[313868441,1707759049884,-500.0,0.00027671,2]
[313868442,1707759049893,-500.0,0.00027671,2]
[313868443,1707759049902,-337.0,0.000277,13]
[313868444,1707759049911,-300.0,0.00027794,2]
[313868445,1707759049921,-150.87929656,0.00027797,4]
[313868446,1707759049931,-500.0,0.00027808,2]
[313868447,1707759049941,-200.0,0.00027822,15]
[313868448,1707759049951,-348.0,0.00027822,15]
[313868449,1707759049962,-827.93043762,0.00027855,2]
[313868450,1707759049974,-500.0,0.00027945,2]
[313868451,1707759049985,-500.0,0.00027945,2]
[313868452,1707759049995,-500.0,0.00027945,2]
[313868453,1707759050005,-161.87340088,0.00027999,10]
[313868454,1707759050016,-226.29332169,0.00028,7]
[313868455,1707759050027,-240.90762063,0.00028,2]
[313868456,1707759050040,-3295.80975819,0.00028,2]
[313868457,1707759050052,-600.0,0.00028,2]
[313868458,1707759050063,-179507.95502792,0.00028,2]
[313868459,1707759050074,-154.87609912,0.00028,2]
[313868460,1707759050085,-155716.437569,0.00028,2]
[313868461,1707759050096,-66099.0,0.00028,2]
[313868462,1707759050108,-1000.0,0.00028,28]
[313868463,1707759050118,-2500.0,0.00028,7]
[313868464,1707759050132,-500.0,0.00028,2]
[313868465,1707759050142,-1039.641,0.00028,3]
[313868466,1707759050154,-20945.0,0.00028,2]
[313868467,1707759050164,-92211.26258904,0.00028,20]
[313868468,1707759050178,-31390.39723949,0.00028,20]
[313868567,1707759669134,605.044049,0.00017183,2]
[313868568,1707759691865,156.01144163,0.00017041,2]
[313868570,1707759702491,2720.58919756,0.00017694,5]
[313868571,1707759732048,1833.40459498,0.00016865,2]
[313868572,1707759732078,219.43119502,0.00016865,2]
[313868573,1707759733749,24780.56880498,0.00017183,2]
[313868584,1707759775269,202.448286,0.00027397,120]
[313868588,1707759814042,174.5123848,0.00016309,2]
[313868589,1707759857064,162.74012769,0.00017073,2]
[313868591,1707759891069,16116.016759,0.00016331,2]
[313868595,1707759936662,19972.1631218,0.00016439,2]
[313868599,1707760079820,1588.01741856,0.0001715,2]
[313868600,1707760087335,161.64208366,0.0001715,2]
[313868601,1707760091044,1747.11162025,0.0001715,2]
[313868602,1707760099964,250.0,0.00016495,2]
[313868603,1707760105009,175.84860306,0.0001715,2]
[313868604,1707760108677,1291.59702042,0.0001715,2]
[313868611,1707760111833,154.92253873,0.0001715,3]
[313868744,1707760115852,1041.08085084,0.0001715,2]
[313868846,1707760129581,19935.63244446,0.0001715,2]
[313868848,1707760129824,154.92253873,0.00015923,2]
[313868849,1707760131362,981.1601613,0.00015923,2]
[313868853,1707760135220,159.896642,0.00017095,2]
[313868854,1707760135307,155.05514058,0.0001715,2]
[313868855,1707760140273,646.292018,0.0001667,2]
[313868856,1707760147947,154.92253873,0.00015923,2]
[313868857,1707760155524,706.94218373,0.0001715,2]
[313868858,1707760158320,1588.01741856,0.0001715,2]
[313868859,1707760159772,155.24389235,0.0001715,2]
[313868860,1707760162040,344.20049745,0.0001715,2]
[313868861,1707760165028,-2824.55519825,0.00017151,2]
[313868862,1707760165065,-2722.44354573,0.00017151,2]
[313868863,1707760165844,154.92253873,0.00015921,2]
[313868870,1707760166415,155.00520547,0.0001715,2]
[313868871,1707760167176,684.648274,0.0001715,2]
[313868872,1707760187161,687.26716638,0.0001715,2]
[313868873,1707760187839,154.92253873,0.00015921,2]
[313868876,1707760191854,9692.9012961,0.00016673,2]
[313868877,1707760214346,154.92253873,0.00015922,2]
[313868881,1707760233591,202.448286,0.00027397,120]
[313868882,1707760234346,154.92253873,0.00015922,2]
[313868924,1707760237502,-324.00807231,0.00017333,2]
[313868926,1707760237512,-1291.59702042,0.00017334,2]
[313868927,1707760237522,-162.74012769,0.00017336,2]
[313868928,1707760237532,-162.74012769,0.00017599,2]
[313868929,1707760237541,-178.836863,0.00017599,2]
[313868931,1707760237552,-2824.55519825,0.0001769,2]
[313868932,1707760237561,-891.92764947,0.00017691,2]
[313868933,1707760237575,-1241.53622006,0.00017691,2]
[313868934,1707760237585,-161.50244672,0.00017692,2]
[313868935,1707760237594,-1077.94224831,0.00017692,2]
[313868936,1707760237603,-176.57990452,0.00017692,2]
[313868937,1707760237613,-328.3603178,0.00017692,2]
[313868938,1707760237622,-20013.87138462,0.00017692,2]
[313868939,1707760237631,-35236.56902631,0.00017693,2]
[313868940,1707760237642,-3555.14697593,0.00017693,2]
[313868941,1707760237651,-32454.91371972,0.00017694,2]
[313869164,1707760240255,-33384.75249441,0.00017694,2]
[313869301,1707760241528,-9802.20843764,0.00017694,2]
[313869303,1707760241544,-84300.29015178,0.00017694,2]
[313869305,1707760241555,-154.93802479,0.00017699,2]
[313869307,1707760241565,-1859.09579688,0.00018,2]
[313869310,1707760241576,-3690.85004162,0.0001828,2]
[313869311,1707760241586,-178.83686299,0.00018573,2]
[313869313,1707760241594,-200.0,0.00018576,2]
[313869315,1707760241604,-250.0,0.00019178,2]
[313869317,1707760241613,-168.945565,0.00019178,2]
[313869319,1707760241622,-166.666666,0.00019178,2]
[313869321,1707760241631,-651.85853467,0.0001929,2]
[313869323,1707760241640,-723.25492323,0.00019436,2]
[313869325,1707760241650,-178.83686299,0.00019548,2]
[313869327,1707760241659,-166.666666,0.00019627,2]
[313869329,1707760241668,-500.0,0.00019863,2]
[313869331,1707760241678,-6305.16520436,0.0002,2]
[313869333,1707760241687,-324.28768484,0.0002,2]
[313869335,1707760241696,-166.666666,0.00020076,2]
[313869337,1707760241706,-280.0,0.00020433,2]
[313869339,1707760241715,-178.83686299,0.00020522,2]
[313869341,1707760241724,-166.666666,0.00020524,2]
[313869343,1707760241733,-500.0,0.00020547,2]
[313869345,1707760241742,-500.0,0.00020822,2]
[313869360,1707760241872,-500.0,0.00020822,2]
[313869362,1707760241882,-500.0,0.00020822,2]
[313869364,1707760241891,-200.3389772,0.00020822,2]
[313869366,1707760241901,-500.0,0.00020822,2]
[313869368,1707760241910,-500.0,0.00020822,2]
[313869370,1707760241919,-164.62002213,0.00020822,2]
[313869372,1707760241932,-335.37997787,0.00020822,2]
[313869374,1707760241942,-500.0,0.00020822,2]
[313869376,1707760241951,-500.0,0.00020822,2]
[313869378,1707760241961,-500.0,0.00020822,2]
[313869380,1707760241970,-500.0,0.00020822,2]
[313869382,1707760241979,-500.0,0.00020822,2]
[313869384,1707760241988,-500.0,0.00020822,2]
[313869386,1707760241998,-500.0,0.00020822,2]
[313869388,1707760242009,-500.0,0.00020822,2]
[313869390,1707760242018,-500.0,0.00020822,2]
[313869392,1707760242028,-500.0,0.00020822,2]
[313869394,1707760242037,-500.0,0.00020822,2]
[313869395,1707760242046,-500.0,0.00020822,2]
[313869398,1707760242056,-500.0,0.00020822,2]
[313869400,1707760242065,-500.0,0.00020822,2]
[313869401,1707760242076,-500.0,0.00020822,2]
[313869404,1707760242086,-379.85834679,0.00020822,2]
[313869405,1707760242095,-529.51121131,0.00020822,2]
[313869407,1707760242104,-500.0,0.00020822,2]
[313869409,1707760242117,-500.0,0.00020822,2]
[313869411,1707760242126,-500.0,0.00020822,2]
[313869413,1707760242135,-500.0,0.00020822,2]
[313869415,1707760242144,-500.0,0.00020822,2]
[313869417,1707760242153,-397.40931692,0.00020822,2]
[313869419,1707760242162,-500.0,0.00020822,2]
[313869421,1707760242171,-500.0,0.00020822,2]
[313869423,1707760242181,-500.0,0.00020822,2]
[313869425,1707760242190,-500.0,0.00020822,2]
[313869427,1707760242199,-253.92508616,0.00020822,2]
[313869429,1707760242208,-500.0,0.00020822,2]
[313869431,1707760242218,-500.0,0.00020822,2]
[313869433,1707760242227,-500.0,0.00020822,2]
[313869435,1707760242236,-500.0,0.00020822,2]
[313869437,1707760242246,-500.0,0.00020822,2]
[313869439,1707760242255,-500.0,0.00020822,2]
[313869441,1707760242265,-500.0,0.00020822,2]
[313869443,1707760242274,-500.0,0.00020822,2]
[313869445,1707760242284,-500.0,0.00020822,2]
[313869447,1707760242293,-521.43844239,0.00020822,2]
[313869449,1707760242303,-500.0,0.00020822,2]
[313869451,1707760242313,-500.0,0.00020822,2]
[313869453,1707760242323,-500.0,0.00020822,2]
[313869455,1707760242332,-500.0,0.00020822,2]
[313869457,1707760242341,-500.0,0.00020822,2]
[313869459,1707760242350,-200.0,0.00020822,2]
[313869461,1707760242359,-500.0,0.00020822,2]
[313869463,1707760242368,-500.0,0.00020822,2]
[313869465,1707760242377,-500.0,0.00020822,2]
[313869467,1707760242387,-500.0,0.00020822,2]
[313869469,1707760242398,-500.0,0.00020822,2]
[313869471,1707760242408,-500.0,0.00020822,2]
[313869474,1707760242417,-500.0,0.00020822,2]
[313869475,1707760242427,-500.0,0.00020822,2]
[313869477,1707760242436,-500.0,0.00020822,2]
[313869479,1707760242445,-500.0,0.00020822,2]
[313869481,1707760242455,-500.0,0.00020822,2]
[313869483,1707760242464,-500.0,0.00020822,2]
[313869485,1707760242473,-337.71403745,0.00020822,2]
[313869518,1707760242779,-162.28596255,0.00020822,2]
[313869520,1707760242788,-500.0,0.00020822,2]
[313869522,1707760242797,-500.0,0.00020822,2]
[313869524,1707760242805,-259.55613697,0.00020822,2]
[313869526,1707760242816,-500.0,0.00020822,2]
[313869528,1707760242826,-410.11879081,0.00020822,2]
[313869530,1707760242842,-89.88120919,0.00020822,2]
[313869532,1707760242851,-500.0,0.00020822,2]
[313869534,1707760242861,-442.01896071,0.00020822,2]
[313869536,1707760242873,-57.98103929,0.00020822,2]
[313869538,1707760242882,-690.35045091,0.00020822,2]
[313869540,1707760242891,-690.35045091,0.00020822,2]
[313869542,1707760242900,-690.35045091,0.00020822,2]
[313869544,1707760242910,-690.35045091,0.00020822,2]
[313869546,1707760242919,-690.35045091,0.00020822,2]
[313869548,1707760242928,-690.35045091,0.00020822,2]
[313869551,1707760242938,-690.35045091,0.00020822,2]
[313869553,1707760242947,-690.35045091,0.00020822,2]
[313869557,1707760242956,-690.35045091,0.00020822,2]
[313869559,1707760242965,-690.35045091,0.00020822,2]
[313869562,1707760242975,-690.35045091,0.00020822,2]
[313869565,1707760242984,-183.67261267,0.00020822,2]
[313869779,1707760246240,-506.67783824,0.00020822,2]
[313869780,1707760246250,-690.35045091,0.00020822,2]
[313869781,1707760246259,-690.35045091,0.00020822,2]
[313869782,1707760246268,-690.35045091,0.00020822,2]
[313869783,1707760246277,-690.35045091,0.00020822,2]
[313869784,1707760246286,-381.92035812,0.00020822,2]
[313869785,1707760246298,-308.43009279,0.00020822,2]
[313869786,1707760246307,-690.35045091,0.00020822,2]
[313869787,1707760246316,-690.35045091,0.00020822,2]
[313869788,1707760246327,-690.35045091,0.00020822,2]
[313869789,1707760246336,-690.35045091,0.00020822,2]
[313869790,1707760246433,-585.16810357,0.00020822,2]
[313869791,1707760246503,-105.18234734,0.00020822,2]
[313869792,1707760246513,-690.35045091,0.00020822,2]
[313869794,1707760246522,-690.35045091,0.00020822,2]
[313869796,1707760246531,-690.35045091,0.00020822,2]
[313869798,1707760246541,-690.35045091,0.00020822,2]
[313869800,1707760246551,-690.35045091,0.00020822,2]
[313869802,1707760246561,-690.35045091,0.00020822,2]
[313869804,1707760246570,-690.35045091,0.00020822,2]
[313869806,1707760246579,-57.36449629,0.00020822,2]
[313869810,1707760246610,-632.98595462,0.00020822,2]
[313869812,1707760246620,-690.35045091,0.00020822,2]
[313869814,1707760246629,-690.35045091,0.00020822,2]
[313869816,1707760246639,-690.35045091,0.00020822,2]
[313869818,1707760246648,-690.35045091,0.00020822,2]
[313869820,1707760246657,-690.35045091,0.00020822,2]
[313869823,1707760246667,-690.35045091,0.00020822,2]
[313869825,1707760246676,-690.35045091,0.00020822,2]
[313869827,1707760246685,-690.35045091,0.00020822,2]
[313869829,1707760246694,-690.35045091,0.00020822,2]
[313869831,1707760246703,-690.35045091,0.00020822,2]
[313869833,1707760246712,-690.35045091,0.00020822,2]
[313869835,1707760246722,-690.35045091,0.00020822,2]
[313869837,1707760246731,-690.35045091,0.00020822,2]
[313869839,1707760246740,-690.35045091,0.00020822,2]
[313869841,1707760246750,-690.35045091,0.00020822,2]
[313869843,1707760246759,-690.35045091,0.00020822,2]
[313869844,1707760246768,-690.35045091,0.00020822,2]
[313869847,1707760246777,-690.35045091,0.00020822,2]
[313869848,1707760246786,-500.0,0.00020822,2]
[313869850,1707760246795,-690.35045091,0.00020822,2]
[313869852,1707760246805,-690.35045091,0.00020822,2]
[313869854,1707760246816,-690.35045091,0.00020822,2]
[313869856,1707760246832,-311.57669359,0.00020822,2]
[313869858,1707760246841,-690.35045091,0.00020822,2]
[313869861,1707760246850,-690.35045091,0.00020822,2]
[313869862,1707760246862,-690.35045091,0.00020822,2]
[313869864,1707760246871,-690.35045091,0.00020822,2]
[313869867,1707760246880,-690.35045091,0.00020822,2]
[313869869,1707760246890,-690.35045091,0.00020822,2]
[313869870,1707760246900,-690.35045091,0.00020822,2]
[313869872,1707760246910,-162.85508188,0.00020822,2]
[313869875,1707760246923,-527.49536903,0.00020822,2]
[313869877,1707760246933,-690.35045091,0.00020822,2]
[313869879,1707760246951,-690.35045091,0.00020822,2]
[313869881,1707760246960,-690.35045091,0.00020822,2]
[313869883,1707760246971,-690.35045091,0.00020822,2]
[313869885,1707760246981,-690.35045091,0.00020822,2]
[313869887,1707760246991,-690.35045091,0.00020822,2]
[313869889,1707760247001,-690.35045091,0.00020822,2]